bitfinex-derivatives/quotes_BTCF0:USTF0_20240923
["timestamp","ask_amount","ask_price","bid_price","bid_amount"]
[1727132052428,0.17375,63328.0,63327.0,0.04727685]
[1727132053534,0.12040022,63328.0,63322.0,0.04727685]
[1727132053723,0.11,63325.0,63322.0,0.04727685]
[1727132053929,0.18893067,63325.0,63322.0,0.04727685]
[1727132054123,0.078955,63324.0,63323.0,0.04727685]
[1727132054529,0.078956,63323.0,63322.0,0.04727685]
[1727132057342,0.079956,63323.0,63322.0,0.04727685]
[1727132057643,0.078957,63322.0,63321.0,0.04727685]
[1727132057843,0.078958,63321.0,63320.0,0.04727685]
[1727132060347,0.07896,63320.0,63317.0,0.078963]
[1727132060645,0.47192001,63325.0,63318.0,0.18165101]
[1727132060848,0.4708,63325.0,63322.0,0.06297254]
[1727132061044,0.11,63325.0,63322.0,0.06297254]
[1727132061230,0.4708,63325.0,63322.0,0.06297254]
[1727132061940,0.11,63325.0,63322.0,0.06297254]
[1727132062142,0.078956,63323.0,63322.0,0.06297254]
[1727132063441,0.079956,63323.0,63322.0,0.06297254]
[1727132066453,0.078956,63323.0,63322.0,0.06297254]
[1727132066646,0.080956,63323.0,63322.0,0.06297254]
[1727132068048,0.082956,63323.0,63322.0,0.06297254]
[1727132068840,0.078961,63319.0,63317.0,0.078963]
[1727132069847,0.078965,63316.0,63315.0,0.3608]
[1727132070050,0.078965,63316.0,63315.0,0.38549047]
[1727132070348,0.078965,63316.0,63315.0,0.3608]
[1727132072054,0.078965,63316.0,63315.0,0.3618]
[1727132072851,0.10756716,63316.0,63315.0,0.3618]
[1727132074839,0.10756716,63316.0,63315.0,0.3608]
[1727132075039,0.10856716,63316.0,63314.0,0.078967]
[1727132075444,0.078966,63315.0,63314.0,0.078967]
[1727132077552,0.078966,63315.0,63314.0,0.2607915]
[1727132078052,0.079966,63315.0,63314.0,0.2607915]
[1727132078253,0.079966,63315.0,63314.0,0.1818245]
[1727132078550,0.079966,63315.0,63314.0,0.07873742]
[1727132079158,0.079966,63315.0,63313.0,0.46732043]
[1727132079343,0.078967,63314.0,63313.0,0.43953742]
[1727132079538,0.078967,63314.0,63313.0,0.54262694]
[1727132081653,0.078967,63314.0,63313.0,0.18182694]
[1727132082159,0.079967,63314.0,63313.0,0.18182694]
[1727132082947,0.080967,63314.0,63313.0,0.18182694]
[1727132084055,0.078968,63313.0,63312.0,0.4059]
[1727132084249,0.078968,63313.0,63312.0,0.43059148]
[1727132084753,0.078968,63313.0,63312.0,0.06979148]
[1727132084956,0.078968,63313.0,63312.0,0.43059148]
[1727132085154,0.079968,63313.0,63312.0,0.43059148]
[1727132085457,0.079968,63313.0,63312.0,0.06979148]
[1727132085658,0.079968,63313.0,63312.0,0.43059148]
[1727132087960,0.83564,63313.0,63311.0,0.04729905]
[1727132088253,0.83564,63313.0,63306.0,0.04729905]
[1727132088254,0.11,63311.0,63306.0,0.04729905]
[1727132088460,0.078977,63306.0,63305.0,0.04729905]
[1727132088664,0.188977,63306.0,63305.0,0.04729905]
[1727132088849,0.235077,63306.0,63305.0,0.04729905]
[1727132089050,0.314054,63306.0,63305.0,0.04729905]
[1727132089251,0.078981,63303.0,63302.0,0.04729905]
[1727132089448,0.078981,63303.0,63298.0,0.3616]
[1727132089449,0.11,63303.0,63301.0,0.04729905]
[1727132089761,0.078983,63301.0,63300.0,0.04729905]
[1727132089961,0.078986,63299.0,63298.0,0.42466283]
[1727132090158,0.078986,63299.0,63298.0,0.3608]
[1727132090664,0.188986,63299.0,63298.0,0.3608]
[1727132091051,0.21753541,63299.0,63298.0,0.3608]
[1727132091253,0.09753541,63299.0,63298.0,0.3608]
[1727132091563,0.058986,63299.0,63298.0,0.3608]
[1727132091749,0.02962621,63303.0,63298.0,0.3608]
[1727132092062,0.0461,63306.0,63301.0,0.17298785]
[1727132092063,0.125078,63306.0,63301.0,0.17298785]
[1727132092257,0.078978,63305.0,63303.0,0.04722995]
[1727132093360,0.078978,63305.0,63303.0,0.05422995]
[1727132094768,0.079978,63305.0,63303.0,0.06122995]
[1727132095270,0.079978,63305.0,63303.0,0.014]
[1727132096369,0.078979,63304.0,63303.0,0.014]
[1727132098261,0.078979,63304.0,63303.0,0.007]
[1727132098470,0.079979,63304.0,63303.0,0.014]
[1727132100369,0.001,63304.0,63303.0,0.14021095]
[1727132100697,0.001,63304.0,63303.0,0.092981]
[1727132101660,0.079979,63304.0,63303.0,0.092981]
[1727132106162,0.079979,63304.0,63303.0,0.14019467]
[1727132109199,0.001,63304.0,63303.0,0.092981]
[1727132109386,0.001,63304.0,63303.0,0.139181]
[1727132114071,0.001,63304.0,63303.0,0.24206909]
[1727132115080,0.001,63304.0,63303.0,1.31598909]
[1727132115268,0.0037,63311.0,63310.0,0.157944]
[1727132115578,0.00237022,63316.0,63315.0,0.078966]
[1727132116075,0.11237022,63316.0,63315.0,0.078966]
[1727132116476,0.11237022,63316.0,63315.0,0.14191993]
[1727132116979,0.11537022,63316.0,63315.0,0.14191993]
[1727132117178,0.19433522,63316.0,63315.0,0.078966]
[1727132117380,0.19433522,63316.0,63315.0,0.14192886]
[1727132118173,0.19933522,63316.0,63315.0,0.14192886]
[1727132118880,0.078966,63315.0,63314.0,0.06296286]
[1727132119086,0.078966,63315.0,63313.0,0.078968]
[1727132119269,0.078966,63315.0,63314.0,0.06293985]
[1727132119474,0.078966,63315.0,63314.0,0.06293128]
[1727132120170,0.078966,63315.0,63314.0,0.06293217]
[1727132120684,0.079966,63315.0,63314.0,0.06293217]
[1727132121207,0.001,63315.0,63312.0,0.04719661]
[1727132121374,0.001,63315.0,63311.0,0.3608]
[1727132121375,0.11,63313.0,63311.0,0.3608]
[1727132121573,0.12867,63312.0,63311.0,0.3608]
[1727132122468,0.0497,63312.0,63308.0,0.04719661]
[1727132122680,0.078972,63310.0,63308.0,0.04719661]
[1727132123378,0.078972,63310.0,63309.0,0.04719661]
[1727132123685,0.078972,63310.0,63309.0,0.40799661]
[1727132123875,0.078972,63310.0,63309.0,0.3608]
[1727132124071,0.078972,63310.0,63309.0,0.40800353]
[1727132124380,0.078972,63310.0,63309.0,0.3608]
[1727132124581,0.078972,63310.0,63309.0,0.3618]
[1727132125079,0.078972,63310.0,63309.0,0.002]
[1727132129081,0.078972,63310.0,63309.0,0.04920353]
[1727132129682,0.078972,63310.0,63309.0,0.002]
[1727132129893,0.078972,63310.0,63309.0,0.04923875]
[1727132130086,0.078972,63310.0,63309.0,0.002]
[1727132130792,0.078972,63310.0,63309.0,0.0492401]
[1727132131379,0.078972,63310.0,63309.0,0.002]
[1727132132096,0.078972,63310.0,63309.0,0.04924233]
[1727132136183,0.078972,63310.0,63309.0,0.002]
[1727132144287,0.078972,63310.0,63309.0,0.04924233]
[1727132146797,0.3608,63312.0,63311.0,0.078971]
[1727132147014,0.3608,63312.0,63311.0,0.1420499]
[1727132147296,0.078966,63315.0,63312.0,0.078969]
[1727132147498,0.078966,63315.0,63313.0,0.14204124]
[1727132148290,0.10809881,63315.0,63313.0,0.14204124]
[1727132148500,0.10809881,63315.0,63314.0,0.078967]
[1727132149398,0.11109881,63315.0,63314.0,0.078967]
[1727132149702,0.11509881,63315.0,63314.0,0.14204024]
[1727132150509,0.11209881,63315.0,63314.0,0.14204024]
[1727132150997,0.11209881,63315.0,63314.0,0.078967]
[1727132151602,0.11009881,63315.0,63314.0,0.078967]
[1727132155303,0.14113281,63315.0,63312.0,0.06307324]
[1727132155803,0.078968,63313.0,63312.0,0.06307324]
[1727132155991,0.078968,63313.0,63311.0,0.078971]
[1727132156191,0.078968,63313.0,63312.0,0.06311588]
[1727132156396,0.078968,63313.0,63312.0,0.001]
[1727132156704,0.078968,63313.0,63312.0,0.002]
[1727132156888,0.078968,63313.0,63312.0,0.06511464]
[1727132157092,0.078968,63313.0,63312.0,0.06411464]
[1727132157293,0.078968,63313.0,63312.0,0.06311464]
[1727132157496,0.078968,63313.0,63312.0,0.06411464]
[1727132158904,0.080968,63313.0,63312.0,0.06311464]
[1727132159202,0.07897,63312.0,63311.0,0.12630741]
[1727132160108,0.43977,63312.0,63311.0,0.04733641]
[1727132160296,0.4095,63312.0,63307.0,0.06311464]
[1727132160605,0.11,63311.0,63310.0,0.04734017]
[1727132161099,0.078972,63310.0,63309.0,0.04734017]
[1727132161299,0.078975,63308.0,63307.0,0.06311464]
[1727132161804,0.078975,63308.0,63307.0,0.06611464]
[1727132163601,0.078975,63308.0,63307.0,0.06911464]
[1727132165394,0.078975,63308.0,63307.0,0.006]
[1727132166103,0.1069825,63308.0,63307.0,0.006]
[1727132167199,0.1069825,63308.0,63307.0,0.116]
[1727132167404,0.1069825,63308.0,63307.0,0.194976]
[1727132169594,0.1069825,63308.0,63307.0,0.084976]
[1727132169907,0.1069825,63308.0,63307.0,0.006]
[1727132169908,0.2169825,63308.0,63307.0,0.006]
[1727132170405,0.2169825,63308.0,63307.0,0.06913094]
[1727132171306,0.2169825,63308.0,63307.0,0.006]
[1727132172399,0.2169825,63308.0,63307.0,0.06912958]
[1727132172802,0.2959575,63308.0,63307.0,0.006]
[1727132174224,0.37488117,63308.0,63307.0,0.006]
[1727132174798,0.84876117,63308.0,63307.0,0.006]
[1727132175012,0.078981,63303.0,63302.0,0.05104927]
[1727132175219,0.188981,63303.0,63302.0,0.04734927]
[1727132175400,0.078982,63302.0,63301.0,0.40814927]
[1727132176212,0.070982,63302.0,63301.0,0.40814927]
[1727132176407,0.062982,63302.0,63301.0,0.40814927]
[1727132177110,0.062982,63302.0,63301.0,0.41714927]
[1727132178003,0.063982,63302.0,63301.0,0.05834927]
[1727132178324,1.263784,63302.0,63301.0,0.011]
[1727132178498,0.078993,63293.0,63291.0,0.04732284]
[1727132178703,0.078997,63290.0,63289.0,0.04732284]
[1727132178906,0.078997,63290.0,63288.0,0.04732284]
[1727132178907,0.078998,63289.0,63288.0,0.04732284]
[1727132179112,0.079001,63287.0,63286.0,0.04732284]
[1727132179308,0.189001,63287.0,63286.0,0.04732284]
[1727132179505,0.079003,63285.0,63284.0,0.40812284]
[1727132180012,0.068003,63285.0,63284.0,0.40812284]
[1727132180209,0.068003,63285.0,63284.0,0.3608]
[1727132180718,0.069003,63285.0,63284.0,0.3718]
[1727132181021,0.068003,63285.0,63284.0,0.3718]
[1727132181909,0.069003,63285.0,63284.0,0.3718]
[1727132182304,0.148006,63285.0,63284.0,0.011]
[1727132182808,0.069003,63285.0,63274.0,0.04732284]
[1727132183014,0.11,63277.0,63274.0,0.04732284]
[1727132183397,0.11,63277.0,63273.0,0.04732284]
[1727132183802,0.11,63277.0,63272.0,0.04732284]
[1727132184203,0.079016,63275.0,63273.0,0.04732284]
[1727132184413,0.03948496,63275.0,63272.0,0.04732284]
[1727132184608,0.11,63274.0,63272.0,0.04732284]
[1727132185314,0.11,63274.0,63269.0,0.489123]
[1727132185505,0.11,63274.0,63269.0,0.488323]
[1727132185710,0.11,63270.0,63269.0,0.488323]
[1727132186111,0.189022,63270.0,63269.0,0.4093]
[1727132187308,0.190022,63270.0,63269.0,0.4093]
[1727132188113,0.191022,63270.0,63269.0,0.4093]
[1727132190617,0.081022,63270.0,63269.0,0.4093]
[1727132191243,0.002,63270.0,63269.0,0.4093]
[1727132192123,0.081022,63270.0,63269.0,0.4093]
[1727132196711,0.081022,63270.0,63269.0,0.488323]
[1727132197809,0.002,63270.0,63269.0,0.488323]
[1727132199524,0.079015,63276.0,63269.0,0.43778365]
[1727132199718,0.079015,63276.0,63271.0,0.04715815]
[1727132200024,0.079015,63276.0,63275.0,0.079016]
[1727132200530,0.080015,63276.0,63275.0,0.079016]
[1727132202118,0.081015,63276.0,63275.0,0.079016]
[1727132204527,0.081015,63276.0,63275.0,0.12617415]
[1727132205423,0.081015,63276.0,63275.0,0.079016]
[1727132206438,0.081015,63276.0,63275.0,0.14214558]
[1727132207737,0.081015,63276.0,63275.0,0.079016]
[1727132209426,0.081015,63276.0,63275.0,0.15770811]
[1727132210419,0.081015,63276.0,63275.0,0.079016]
[1727132211333,0.081015,63276.0,63275.0,0.12639824]
[1727132211540,0.081015,63276.0,63275.0,0.079016]
[1727132219429,0.081015,63276.0,63275.0,0.1829575]
[1727132223741,0.081015,63276.0,63275.0,0.18298357]
[1727132226540,0.081015,63276.0,63275.0,0.14223955]
[1727132234430,0.081015,63276.0,63275.0,0.18301354]
[1727132243250,0.081015,63276.0,63275.0,0.18297501]
[1727132248544,0.081015,63276.0,63275.0,0.079016]
[1727132249852,0.191015,63276.0,63275.0,0.079016]
[1727132253248,0.112,63276.0,63272.0,0.07905889]
[1727132253451,0.079018,63273.0,63272.0,0.07905889]
[1727132253651,0.079018,63273.0,63272.0,0.15807789]
[1727132254662,0.079018,63273.0,63272.0,0.15907789]
[1727132255662,0.080018,63273.0,63272.0,0.15907789]
[1727132256162,0.080018,63273.0,63272.0,0.26344761]
[1727132256163,0.081018,63273.0,63272.0,0.26344761]
[1727132256551,0.081018,63273.0,63272.0,0.27885077]
[1727132257048,0.04148568,63273.0,63272.0,0.27885077]
[1727132257850,0.04148568,63273.0,63272.0,0.27853442]
[1727132263363,0.04148568,63273.0,63272.0,0.10505337]
[1727132263665,0.04148568,63273.0,63272.0,0.06223536]
[1727132263666,1.55542368,63273.0,63272.0,0.06223536]
[1727132263859,0.079021,63271.0,63270.0,0.04742787]
[1727132264065,0.079022,63270.0,63269.0,0.04742787]
[1727132264259,0.079026,63267.0,63266.0,0.04742787]
[1727132264570,0.079031,63264.0,63261.0,0.08140281]
[1727132264767,0.079031,63264.0,63262.0,0.10374384]
[1727132264966,0.079031,63264.0,63262.0,0.079032]
[1727132265771,0.079031,63264.0,63263.0,0.079031]
[1727132266672,0.080031,63264.0,63263.0,0.079031]
[1727132267568,0.081031,63264.0,63263.0,0.079031]
[1727132269566,0.081031,63264.0,63261.0,0.00237081]
[1727132269567,0.079032,63262.0,63261.0,0.00237081]
[1727132269971,0.079032,63262.0,63261.0,0.05179458]
[1727132270973,0.080032,63262.0,63261.0,0.05179458]
[1727132271566,0.080032,63262.0,63261.0,0.23468935]
[1727132272063,0.080032,63262.0,63261.0,0.31372235]
[1727132272064,0.002,63262.0,63261.0,0.31372235]
[1727132272368,0.002,63262.0,63261.0,0.23462348]
[1727132275573,0.002,63262.0,63261.0,0.32908553]
[1727132275776,0.0037,63270.0,63269.0,0.079023]
[1727132275777,0.03271484,63270.0,63269.0,0.079023]
[1727132275972,0.36216,63273.0,63268.0,0.11]
[1727132276174,0.3608,63273.0,63268.0,0.11]
[1727132277085,0.001,63270.0,63269.0,0.079023]
[1727132277667,0.3618,63273.0,63268.0,0.11]
[1727132277872,0.39140205,63273.0,63268.0,0.11]
[1727132278984,0.46942005,63273.0,63272.0,0.079019]
[1727132279182,0.39040205,63273.0,63272.0,0.079019]
[1727132280282,0.38940205,63273.0,63272.0,0.079019]
[1727132280984,0.38940205,63273.0,63272.0,0.080019]
[1727132283582,0.3608,63273.0,63272.0,0.080019]
[1727132283790,0.082712,63278.0,63274.0,0.079017]
[1727132283791,0.0037,63278.0,63274.0,0.079017]
[1727132284085,0.171411,63279.0,63274.0,0.079017]
[1727132284286,0.126111,63279.0,63278.0,0.079012]
[1727132284485,0.126111,63279.0,63278.0,0.12635865]
[1727132285986,0.0471,63279.0,63278.0,0.12635865]
[1727132286580,0.0471,63279.0,63278.0,0.079012]
[1727132286793,0.08152714,63279.0,63278.0,0.079012]
[1727132287486,0.08552714,63279.0,63278.0,0.079012]
[1727132288080,0.08352714,63279.0,63278.0,0.079012]
[1727132288780,0.15653814,63279.0,63278.0,0.079012]
[1727132289093,0.16053814,63279.0,63278.0,0.079012]
[1727132293794,0.16053814,63279.0,63278.0,0.12635865]
[1727132294394,0.16053814,63279.0,63278.0,0.079012]
[1727132294595,0.16053814,63279.0,63278.0,0.12635233]
[1727132296393,0.15653814,63279.0,63278.0,0.12635233]
[1727132296596,0.15753814,63279.0,63278.0,0.12635233]
[1727132297093,0.15453814,63279.0,63278.0,0.12635233]
[1727132297299,0.15753814,63279.0,63278.0,0.12635233]
[1727132297482,0.15853814,63279.0,63278.0,0.12635233]
[1727132298991,0.11143814,63279.0,63278.0,0.12635233]
[1727132299896,0.11043814,63279.0,63278.0,0.12635233]
[1727132300101,0.11143814,63279.0,63278.0,0.12635233]
[1727132300290,0.11143814,63279.0,63278.0,0.079012]
[1727132300686,0.11143814,63279.0,63278.0,0.12636592]
[1727132301190,0.11043814,63279.0,63278.0,0.12636592]
[1727132301398,0.11143814,63279.0,63278.0,0.079012]
[1727132301701,0.19039351,63279.0,63278.0,0.079012]
[1727132301897,0.11143814,63279.0,63278.0,0.079012]
[1727132302202,0.19039351,63279.0,63278.0,0.079012]
[1727132302499,0.18739351,63279.0,63278.0,0.079012]
[1727132302689,0.19039351,63279.0,63278.0,0.079012]
[1727132303087,0.18739351,63279.0,63278.0,0.079012]
[1727132303294,0.19239351,63279.0,63278.0,0.079012]
[1727132304101,0.19439351,63279.0,63278.0,0.079012]
[1727132305194,0.19239351,63279.0,63278.0,0.079012]
[1727132305498,0.13905687,63279.0,63278.0,0.079012]
[1727132305701,0.13705687,63279.0,63278.0,0.079012]
[1727132306303,0.13905687,63279.0,63278.0,0.079012]
[1727132307200,0.14105687,63279.0,63278.0,0.079012]
[1727132307997,0.13805687,63279.0,63278.0,0.079012]
[1727132308501,0.13605687,63279.0,63278.0,0.079012]
[1727132308696,0.11043814,63279.0,63278.0,0.079012]
[1727132309198,0.10843814,63279.0,63278.0,0.079012]
[1727132311708,0.11143814,63279.0,63278.0,0.079012]
[1727132316815,0.13705688,63279.0,63278.0,0.1264421]
[1727132317213,0.13805688,63279.0,63278.0,0.1264421]
[1727132318120,0.13905688,63279.0,63278.0,0.1264421]
[1727132319016,0.13905687,63279.0,63278.0,0.1264421]
[1727132319520,0.14005687,63279.0,63278.0,0.1264421]
[1727132319707,0.13605687,63279.0,63278.0,0.1264421]
[1727132319907,0.14105687,63279.0,63278.0,0.1264421]
[1727132320103,0.14105687,63279.0,63278.0,0.079012]
[1727132323714,0.11543814,63279.0,63278.0,0.079012]
[1727132326428,0.079013,63277.0,63276.0,0.0788932]
[1727132326719,0.079013,63277.0,63276.0,0.18232926]
[1727132326911,0.079013,63277.0,63276.0,0.26134326]
[1727132328714,0.080013,63277.0,63276.0,0.26134326]
[1727132329115,0.083013,63277.0,63276.0,0.26134326]
[1727132333721,0.083013,63277.0,63276.0,0.18245006]
[1727132333921,0.083013,63277.0,63276.0,0.26145324]
[1727132334149,0.083013,63277.0,63272.0,0.09467185]
[1727132334150,1.2361147,63277.0,63271.0,0.05102361]
[1727132334429,0.3608,63272.0,63268.0,0.0037]
[1727132334629,0.079028,63265.0,63264.0,0.0037]
[1727132334835,0.079028,63265.0,63256.0,0.0037]
[1727132334836,0.079038,63257.0,63256.0,0.0037]
[1727132335128,0.079043,63253.0,63250.0,0.0037]
[1727132335324,0.079043,63253.0,63251.0,0.10325143]
[1727132335523,0.079045,63252.0,63248.0,0.08511988]
[1727132335729,0.079045,63252.0,63249.0,0.02471645]
[1727132335927,0.079045,63252.0,63248.0,0.08511988]
[1727132336228,0.079045,63252.0,63250.0,0.11]
[1727132336731,0.079045,63252.0,63250.0,0.189047]
[1727132336922,0.001,63252.0,63250.0,0.189047]
[1727132337320,0.002,63252.0,63250.0,0.11]
[1727132339225,0.002,63252.0,63250.0,0.111]
[1727132342832,0.002,63252.0,63250.0,0.190046]
[1727132344337,0.081045,63252.0,63250.0,0.190046]
[1727132346421,0.081045,63252.0,63251.0,0.079046]
[1727132348339,0.002,63252.0,63251.0,0.079046]
[1727132348538,0.001,63252.0,63251.0,0.079046]
[1727132348739,0.002,63252.0,63251.0,0.080046]
[1727132351037,0.002,63252.0,63251.0,0.10890087]
[1727132361456,0.002,63252.0,63251.0,0.21166666]
[1727132364555,0.002,63252.0,63251.0,0.3343765]
[1727132366240,0.002,63252.0,63251.0,0.21166666]
[1727132366554,0.002,63252.0,63251.0,0.21182146]
[1727132367136,0.002,63252.0,63251.0,0.33449926]
[1727132367341,0.002,63252.0,63251.0,0.21182146]
[1727132369645,0.002,63252.0,63251.0,0.41662802]
[1727132370049,0.002,63252.0,63251.0,0.30662802]
[1727132370247,0.002,63252.0,63251.0,0.41662802]
[1727132370751,0.002,63252.0,63251.0,0.32182146]
[1727132371282,0.002,63252.0,63251.0,0.41662814]
[1727132371441,0.002,63252.0,63251.0,0.32182146]
[1727132371951,0.002,63252.0,63251.0,0.29296659]
[1727132372748,0.002,63252.0,63251.0,0.18296659]
[1727132372947,0.081044,63252.0,63251.0,0.18296659]
[1727132373254,0.081044,63252.0,63251.0,0.08001215]
[1727132373456,0.081044,63252.0,63251.0,0.001]
[1727132373852,0.191044,63252.0,63251.0,0.001]
[1727132374451,0.191044,63252.0,63251.0,0.08001215]
[1727132374650,0.191044,63252.0,63251.0,0.001]
[1727132381049,0.081044,63252.0,63251.0,0.001]
[1727132383559,0.081044,63252.0,63251.0,0.080046]
[1727132383763,0.081044,63252.0,63251.0,0.001]
[1727132388460,0.081044,63252.0,63251.0,0.080046]
[1727132391880,0.002,63252.0,63251.0,0.190046]
[1727132392063,0.002,63252.0,63251.0,0.37209458]
[1727132392364,0.002,63252.0,63251.0,0.31779801]
[1727132392571,0.002,63252.0,63251.0,0.67859801]
[1727132394265,0.002,63252.0,63251.0,0.67859712]
[1727132394662,0.002,63252.0,63251.0,0.71814043]
[1727132395366,0.002,63252.0,63251.0,0.71796438]
[1727132397464,0.002,63252.0,63251.0,0.71796414]
[1727132398872,0.002,63252.0,63251.0,0.71796403]
[1727132400770,0.002,63252.0,63251.0,0.65370638]
[1727132400969,0.002,63252.0,63251.0,0.71796385]
[1727132401164,0.002,63252.0,63251.0,0.69324944]
[1727132401369,0.002,63252.0,63251.0,0.71796385]
[1727132403478,0.002,63252.0,63251.0,0.71796445]
[1727132403777,0.002,63252.0,63251.0,0.67842102]
[1727132403979,0.002,63252.0,63251.0,0.71796434]
[1727132404367,0.002,63252.0,63251.0,0.56842102]
[1727132405082,0.081044,63252.0,63251.0,0.18284995]
[1727132405281,0.081044,63252.0,63251.0,0.18303249]
[1727132405474,0.081044,63252.0,63251.0,0.07998957]
[1727132406177,0.081044,63252.0,63251.0,0.18305681]
[1727132407073,0.081044,63252.0,63251.0,0.001]
[1727132408675,0.081044,63252.0,63251.0,0.111]
[1727132409377,0.081044,63252.0,63251.0,0.190046]
[1727132410584,0.002,63252.0,63251.0,0.75749235]
[1727132410783,0.002,63252.0,63251.0,0.71804636]
[1727132414276,0.002,63252.0,63251.0,0.74721662]
[1727132416184,0.002,63252.0,63251.0,0.38641662]
[1727132416787,0.002,63252.0,63251.0,0.38641609]
[1727132417790,0.002,63252.0,63251.0,0.34685059]
[1727132417991,0.002,63252.0,63251.0,0.38639465]
[1727132419277,0.002,63252.0,63251.0,0.31768033]
[1727132419486,0.002,63252.0,63251.0,0.41250895]
[1727132420186,0.002,63252.0,63251.0,0.38779407]
[1727132420384,0.002,63252.0,63251.0,0.41250922]
[1727132420585,0.002,63252.0,63251.0,0.38779407]
[1727132420788,0.002,63252.0,63251.0,0.41250915]
[1727132421889,0.002,63252.0,63251.0,0.31768053]
[1727132422094,0.002,63252.0,63251.0,0.35722394]
[1727132422392,0.0037,63259.0,63251.0,0.35722394]
[1727132422393,0.0037,63259.0,63251.0,1.35245794]
[1727132422583,0.084092,63262.0,63261.0,0.079033]
[1727132422779,0.3608,63268.0,63261.0,0.1026837]
[1727132422990,0.235627,63266.0,63265.0,0.06322161]
[1727132423584,0.26455514,63266.0,63265.0,0.06322161]
[1727132424184,0.26455514,63266.0,63264.0,0.06322161]
[1727132424185,0.079028,63265.0,63264.0,0.06322161]
[1727132425287,0.080028,63265.0,63264.0,0.06322161]
[1727132425995,0.082028,63265.0,63264.0,0.06322161]
[1727132427402,0.082028,63265.0,63263.0,0.079031]
[1727132427403,0.079029,63264.0,63263.0,0.14225261]
[1727132429104,0.079029,63264.0,63263.0,0.079031]
[1727132429600,0.080029,63264.0,63263.0,0.079031]
[1727132434798,0.001,63264.0,63263.0,0.189031]
[1727132438797,0.001,63264.0,63263.0,0.21681627]
[1727132439099,0.001,63264.0,63263.0,0.34404328]
[1727132439421,0.001,63264.0,63263.0,0.3684547]
[1727132439903,0.079012,63279.0,63270.0,0.079022]
[1727132440099,0.0037,63278.0,63270.0,0.59794848]
[1727132440293,0.0037,63281.0,63279.0,0.079011]
[1727132440490,0.079008,63282.0,63279.0,0.079011]
[1727132441509,0.189008,63282.0,63279.0,0.079011]
[1727132441698,0.195008,63282.0,63279.0,0.079011]
[1727132442395,0.079009,63281.0,63279.0,0.079011]
[1727132442599,0.090009,63281.0,63279.0,0.079011]
[1727132442992,0.079009,63281.0,63279.0,0.079011]
[1727132443615,0.087009,63281.0,63279.0,0.079011]
[1727132444512,0.093009,63281.0,63279.0,0.079011]
[1727132445409,0.439809,63280.0,63279.0,0.079011]
[1727132446709,0.447809,63280.0,63279.0,0.080011]
[1727132447510,0.453809,63280.0,63279.0,0.080011]
[1727132448099,0.453809,63280.0,63279.0,0.001]
[1727132448304,1.006898,63280.0,63279.0,0.001]
[1727132452112,1.03507128,63280.0,63279.0,0.001]
[1727132452901,0.56099128,63280.0,63279.0,0.001]
[1727132455420,0.67099128,63280.0,63279.0,0.001]
[1727132456419,0.079018,63273.0,63272.0,0.0037]
[1727132456715,0.079019,63272.0,63270.0,0.04729366]
[1727132456899,0.158042,63271.0,63270.0,0.04729366]
[1727132457101,0.158044,63270.0,63269.0,0.40809366]
[1727132457305,0.158044,63270.0,63269.0,0.40810439]
[1727132457906,0.079024,63268.0,63267.0,0.04730439]
[1727132458803,0.079022,63270.0,63266.0,0.04730439]
[1727132458804,0.079026,63267.0,63266.0,0.04730439]
[1727132459210,0.079027,63266.0,63265.0,0.079028]
[1727132459620,0.076027,63266.0,63265.0,0.079028]
[1727132460915,0.077027,63266.0,63265.0,0.079028]
[1727132461826,0.080027,63266.0,63265.0,0.079028]
[1727132462330,0.080027,63266.0,63265.0,0.12635249]
[1727132462620,0.10861869,63266.0,63265.0,0.079028]
[1727132462919,0.10861869,63266.0,63265.0,0.04732449]
[1727132463128,0.10861869,63266.0,63262.0,0.2521492]
[1727132463129,0.079028,63265.0,63264.0,0.04732449]
[1727132463334,0.07903,63264.0,63262.0,0.2521492]
[1727132464015,0.07903,63264.0,63263.0,0.1421336]
[1727132464624,0.07903,63264.0,63263.0,0.079031]
[1727132464821,0.03359169,63266.0,63265.0,0.079028]
[1727132464822,0.005,63266.0,63265.0,0.079028]
[1727132465121,0.002,63266.0,63265.0,0.25213222]
[1727132465322,0.002,63266.0,63265.0,0.189028]
[1727132465918,0.079025,63268.0,63267.0,0.079024]
[1727132466116,0.079025,63268.0,63267.0,0.61293122]
[1727132466324,0.079025,63268.0,63267.0,0.549824]
[1727132467019,0.079025,63268.0,63267.0,0.59715842]
[1727132467219,0.02892827,63270.0,63269.0,0.079023]
[1727132467420,0.079022,63270.0,63269.0,0.079023]
[1727132468125,0.079022,63270.0,63269.0,0.12636223]
[1727132468426,0.079022,63270.0,63269.0,0.079023]
[1727132469126,0.082022,63270.0,63269.0,0.079023]
[1727132469524,0.083022,63270.0,63269.0,0.079023]
[1727132470721,0.083022,63270.0,63269.0,0.080023]
[1727132470722,0.082022,63270.0,63269.0,0.080023]
[1727132471520,0.080022,63270.0,63269.0,0.080023]
[1727132472221,0.003,63270.0,63269.0,0.080023]
[1727132472416,0.003,63270.0,63269.0,0.079023]
[1727132472622,0.004,63270.0,63269.0,0.079023]
[1727132473021,0.001,63270.0,63269.0,0.079023]
[1727132473216,0.002,63270.0,63269.0,0.079023]
[1727132473422,0.001,63270.0,63269.0,0.080023]
[1727132474031,0.001,63270.0,63269.0,0.079023]
[1727132474225,0.001,63270.0,63269.0,0.080023]
[1727132474712,0.079022,63271.0,63270.0,0.079022]
[1727132474915,0.079022,63271.0,63270.0,0.14216641]
[1727132475113,0.079022,63271.0,63270.0,0.079022]
[1727132476522,0.081022,63271.0,63270.0,0.079022]
[1727132481329,0.081022,63271.0,63270.0,0.12640388]
[1727132482527,0.079022,63271.0,63270.0,0.12640388]
[1727132482723,0.081022,63271.0,63270.0,0.12640388]
[1727132484331,0.081022,63271.0,63270.0,0.079022]
[1727132484623,0.081022,63271.0,63270.0,0.12641084]